bitfinex-derivatives/quotes_BTCF0:USTF0_20250828
["timestamp","ask_amount","ask_price","bid_price","bid_amount"]
[1756344181557,1.51150943,111580.0,111570.0,0.06718]
[1756344181859,1.51150943,111580.0,111570.0,0.02891]
[1756344182862,1.76150943,111580.0,111560.0,0.02729]
[1756344183053,0.31222886,111570.0,111560.0,0.02729]
[1756344183256,0.67222886,111570.0,111560.0,0.02709]
[1756344185265,0.66222886,111570.0,111560.0,0.04325]
[1756344185565,0.66222886,111570.0,111560.0,0.0661]
[1756344185865,0.66222886,111570.0,111560.0,0.04325]
[1756344186065,0.66222886,111570.0,111560.0,0.02709]
[1756344186465,0.66222886,111570.0,111560.0,0.04325]
[1756344188667,0.66222886,111570.0,111560.0,0.0661]
[1756344188870,0.66222886,111570.0,111560.0,0.14412]
[1756344189164,1.49090886,111570.0,111560.0,0.14412]
[1756344190560,1.14094886,111570.0,111560.0,0.14412]
[1756344191469,1.51094886,111570.0,111560.0,0.04325]
[1756344191973,1.51094886,111570.0,111560.0,0.14412]
[1756344192458,1.51094886,111570.0,111560.0,0.02709]
[1756344194470,1.51094886,111570.0,111550.0,0.02729]
[1756344194665,0.33798886,111560.0,111550.0,0.0002]
[1756344194966,0.02576,111550.0,111540.0,0.11723]
[1756344195270,1.16670886,111550.0,111540.0,0.11703]
[1756344195662,1.25584079,111550.0,111540.0,0.14412]
[1756344195863,1.23584079,111550.0,111540.0,0.14412]
[1756344196169,1.25584079,111550.0,111540.0,0.14412]
[1756344196371,0.92361193,111550.0,111540.0,0.14412]
[1756344196570,1.23484079,111550.0,111540.0,0.14412]
[1756344196762,1.25484079,111550.0,111540.0,0.14412]
[1756344197069,1.25484079,111550.0,111540.0,0.14612]
[1756344197265,1.25484079,111550.0,111540.0,0.14812]
[1756344197458,1.23484079,111550.0,111540.0,0.1147]
[1756344197664,1.25484079,111550.0,111540.0,0.1147]
[1756344197964,1.25484079,111550.0,111540.0,0.08953]
[1756344198473,1.60484079,111550.0,111540.0,0.08953]
[1756344199166,1.23488079,111550.0,111540.0,0.14812]
[1756344201070,1.55488079,111550.0,111540.0,0.0701]
[1756344201260,1.55488079,111550.0,111540.0,0.04725]
[1756344202170,1.55488079,111550.0,111540.0,0.0701]
[1756344202372,1.55488079,111550.0,111540.0,0.12869]
[1756344202563,0.40612079,111550.0,111540.0,0.14812]
[1756344202767,1.23488079,111550.0,111540.0,0.14812]
[1756344203666,1.57488079,111550.0,111540.0,0.14812]
[1756344204274,0.40612079,111550.0,111540.0,0.14812]
[1756344204464,0.80864079,111550.0,111540.0,0.14812]
[1756344205568,1.17864079,111550.0,111540.0,0.14812]
[1756344206177,1.17864079,111550.0,111540.0,0.12295]
[1756344206470,0.74612079,111550.0,111540.0,0.12295]
[1756344206675,1.23484079,111550.0,111540.0,0.14812]
[1756344207374,0.40612079,111550.0,111540.0,0.14812]
[1756344207575,1.23484079,111550.0,111540.0,0.14812]
[1756344208276,0.40612079,111550.0,111540.0,0.14812]
[1756344208465,0.52153193,111550.0,111540.0,0.14812]
[1756344208670,0.83376079,111550.0,111540.0,0.14812]
[1756344209579,0.91470193,111550.0,111540.0,0.46034886]
[1756344210177,0.08598193,111550.0,111540.0,0.46034886]
[1756344210379,0.91470193,111550.0,111540.0,0.46034886]
[1756344210977,0.08598193,111550.0,111540.0,0.46034886]
[1756344211270,0.91470193,111550.0,111540.0,0.46034886]
[1756344212872,0.08598193,111550.0,111540.0,0.46034886]
[1756344213078,0.91470193,111550.0,111540.0,0.46034886]
[1756344213977,0.92261193,111550.0,111540.0,0.14812]
[1756344214280,0.92261193,111550.0,111540.0,0.46034886]
[1756344214481,0.09389193,111550.0,111540.0,0.46034886]
[1756344214676,0.08598193,111550.0,111540.0,0.54999556]
[1756344214878,0.43265193,111550.0,111540.0,0.54999556]
[1756344215076,0.07013193,111550.0,111540.0,0.54999556]
[1756344215280,0.34584,111550.0,111540.0,0.54999556]
[1756344215580,0.34584,111550.0,111540.0,0.79999556]
[1756344216793,0.0001,111560.0,111540.0,0.71431556]
[1756344216977,0.0001,111560.0,111550.0,0.45528886]
[1756344216978,0.66051,111560.0,111550.0,0.45528886]
[1756344217178,0.66041,111560.0,111550.0,0.45528886]
[1756344217670,0.66832,111560.0,111550.0,0.45528886]
[1756344219581,0.005,111560.0,111550.0,1.27815642]
[1756344219777,0.0001,111570.0,111560.0,0.2326907]
[1756344219978,0.05342,111580.0,111570.0,0.2326826]
[1756344220176,0.05342,111580.0,111570.0,0.54491146]
[1756344220177,0.05332,111580.0,111570.0,0.54491146]
[1756344220979,0.04067,111580.0,111570.0,0.54491146]
[1756344221179,0.04267,111580.0,111570.0,0.54491146]
[1756344221984,0.002,111580.0,111570.0,0.75491146]
[1756344222179,0.002,111580.0,111570.0,1.00491146]
[1756344222687,0.003,111580.0,111570.0,1.00491146]
[1756344223082,0.001,111580.0,111570.0,1.00491146]
[1756344223282,0.002,111580.0,111570.0,1.00491146]
[1756344223484,0.001,111580.0,111570.0,1.00491146]
[1756344224386,0.0001,111590.0,111580.0,0.2326746]
[1756344224683,0.89222955,111600.0,111590.0,0.2326666]
[1756344224684,0.91082955,111600.0,111590.0,0.2326666]
[1756344224885,1.20289955,111600.0,111590.0,0.54489546]
[1756344225684,1.21554955,111600.0,111590.0,0.54489546]
[1756344227496,1.21854955,111600.0,111590.0,0.54489546]
[1756344227892,1.21654955,111600.0,111590.0,0.54489546]
[1756344229687,1.19854093,111600.0,111590.0,0.54489546]
[1756344230197,0.35140093,111600.0,111590.0,0.54489546]
[1756344230396,1.19834093,111600.0,111590.0,0.54489546]
[1756344230694,1.00834093,111600.0,111590.0,0.54489546]
[1756344235401,0.12658093,111600.0,111590.0,1.02461725]
[1756344235602,0.04658093,111600.0,111590.0,1.02461725]
[1756344236404,0.04658093,111600.0,111590.0,0.67810839]
[1756344236607,0.10781093,111600.0,111590.0,0.15346839]
[1756344236803,0.09990093,111600.0,111590.0,0.56561725]
[1756344237610,0.09890093,111600.0,111590.0,0.56561725]
[1756344237909,0.09890093,111600.0,111590.0,0.56661725]
[1756344238301,0.09990093,111600.0,111590.0,0.56561725]
[1756344238502,0.09990093,111600.0,111590.0,0.25338839]
[1756344238701,0.10681093,111600.0,111590.0,0.56461725]
[1756344238902,0.10681093,111600.0,111590.0,0.56761725]
[1756344239107,0.09890093,111600.0,111590.0,0.56761725]
[1756344239505,0.09890093,111600.0,111590.0,0.56561725]
[1756344239706,0.09890093,111600.0,111590.0,0.56661725]
[1756344240408,0.04558093,111600.0,111590.0,0.77561725]
[1756344240608,0.12387186,111610.0,111600.0,0.2335386]
[1756344240803,0.16377186,111610.0,111600.0,0.54576746]
[1756344241006,0.15112186,111610.0,111600.0,0.54576746]
[1756344241800,0.11112186,111610.0,111600.0,0.54576746]
[1756344242105,0.12477186,111610.0,111600.0,0.54576746]
[1756344242515,0.12477186,111610.0,111600.0,0.2335386]
[1756344242806,0.13268186,111610.0,111600.0,0.42125886]
[1756344243014,0.13268186,111610.0,111600.0,0.45616886]
[1756344243608,0.17105851,111610.0,111600.0,0.54576746]
[1756344243809,0.16314851,111610.0,111600.0,0.54576746]
[1756344245808,0.17105851,111610.0,111600.0,0.54576746]
[1756344246907,0.16314851,111610.0,111600.0,0.54576746]
[1756344249110,0.13372235,111610.0,111600.0,0.54576746]
[1756344249312,0.96188235,111610.0,111600.0,0.54576746]
[1756344249508,0.98038235,111610.0,111600.0,0.54576746]
[1756344249704,0.96188235,111610.0,111600.0,0.85799632]
[1756344249904,0.13372235,111610.0,111600.0,0.85799632]
[1756344250212,0.13372235,111610.0,111600.0,0.54576746]
[1756344252414,0.11000851,111610.0,111600.0,0.54576746]
[1756344253014,0.1337329,111610.0,111600.0,1.31799632]
[1756344253215,0.11000851,111610.0,111600.0,1.31799632]
[1756344253411,0.01831226,111620.0,111610.0,0.1177504]
[1756344253716,2.58861,111630.0,111620.0,0.2091423]
[1756344253906,2.16411303,111630.0,111620.0,0.54575116]
[1756344254213,2.99223303,111630.0,111620.0,0.54575116]
[1756344254613,3.00488303,111630.0,111620.0,0.54575116]
[1756344254804,3.00488303,111630.0,111610.0,0.08836233]
[1756344254805,0.07595,111620.0,111610.0,0.08836233]
[1756344255009,0.71647507,111620.0,111610.0,0.08816233]
[1756344255314,0.74019756,111620.0,111610.0,0.06378233]
[1756344255908,0.4279687,111620.0,111610.0,0.06378233]
[1756344256108,0.99019756,111620.0,111610.0,0.04775233]
[1756344256313,0.99019756,111620.0,111610.0,0.01959233]
[1756344257110,0.99019756,111620.0,111610.0,0.04775233]
[1756344257316,0.99219756,111620.0,111610.0,0.01959233]
[1756344257813,0.99319756,111620.0,111610.0,0.04775233]
[1756344258018,0.99219756,111620.0,111610.0,0.04775233]
[1756344258315,0.99419756,111620.0,111610.0,0.01959233]
[1756344258508,0.04255,111610.0,111600.0,0.02836]
[1756344258818,1.35918132,111610.0,111600.0,0.04419]
[1756344259012,1.38117132,111610.0,111600.0,0.04419]
[1756344259211,1.38117132,111610.0,111600.0,0.06857]
[1756344260212,1.38117132,111610.0,111600.0,0.04419]
[1756344260516,1.38217132,111610.0,111600.0,0.04419]
[1756344260716,0.08111249,111610.0,111600.0,0.45616886]
[1756344260908,0.90919249,111610.0,111600.0,0.45616886]
[1756344261312,0.91019249,111610.0,111600.0,0.45616886]
[1756344261612,0.91219249,111610.0,111600.0,0.61576726]
[1756344261915,0.85507,111610.0,111600.0,1.06799612]
[1756344262114,0.88747,111610.0,111600.0,0.54576726]
[1756344262821,0.05939,111610.0,111600.0,0.54576726]
[1756344263004,0.004,111610.0,111600.0,1.31799612]
[1756344263318,0.002,111610.0,111600.0,1.31799612]
[1756344263812,0.001,111610.0,111600.0,1.31799612]
[1756344264215,0.90186621,111620.0,111610.0,0.1460804]
[1756344264414,0.9254961,111620.0,111610.0,0.62575926]
[1756344264708,0.90176621,111620.0,111610.0,0.53616886]
[1756344264913,0.90176621,111620.0,111610.0,0.70616886]
[1756344265114,0.90176621,111620.0,111610.0,0.77616886]
[1756344265318,0.04028621,111620.0,111610.0,0.77616886]
[1756344265616,0.90276621,111620.0,111610.0,0.70616886]
[1756344266513,0.84837621,111620.0,111610.0,0.70616886]
[1756344267017,0.90276621,111620.0,111610.0,0.70616886]
[1756344267206,0.90176621,111620.0,111610.0,0.70616886]
[1756344267407,0.90176621,111620.0,111610.0,0.72640473]
[1756344268910,0.90176621,111620.0,111610.0,0.81599513]
[1756344269118,0.90176621,111620.0,111610.0,0.50376627]
[1756344269317,0.90176621,111620.0,111610.0,0.81599513]
[1756344270013,0.90176621,111620.0,111610.0,0.72640473]
[1756344270918,0.90176621,111620.0,111610.0,0.41417587]
[1756344271119,0.90176621,111620.0,111610.0,0.72640473]
[1756344272118,0.90176621,111620.0,111610.0,0.81599513]
[1756344272318,0.07368621,111620.0,111610.0,0.81599513]
[1756344272519,0.90168621,111620.0,111610.0,0.81599513]
[1756344276220,0.90164621,111620.0,111610.0,0.81599513]
[1756344276722,0.07368621,111620.0,111610.0,0.81599513]
[1756344276918,0.87268621,111620.0,111610.0,0.81599513]
[1756344277926,0.90164621,111620.0,111610.0,0.81599513]
[1756344278623,0.90164621,111620.0,111610.0,0.50376627]
[1756344278825,0.90164621,111620.0,111610.0,0.81599513]
[1756344281623,1.80387507,111620.0,111610.0,0.04839587]
[1756344281824,1.79387507,111620.0,111610.0,0.06438587]
[1756344282127,1.79387507,111620.0,111610.0,0.04839587]
[1756344282725,1.79487507,111620.0,111610.0,0.04839587]
[1756344283025,1.79587507,111620.0,111610.0,0.04839587]
[1756344283422,1.79787507,111620.0,111610.0,0.04839587]
[1756344284027,1.79887507,111620.0,111610.0,0.02023587]
[1756344284723,1.82255106,111620.0,111600.0,0.02912]
[1756344284928,1.18894886,111610.0,111600.0,0.02492]
[1756344285132,1.50894886,111610.0,111600.0,0.02492]
[1756344286030,1.50994886,111610.0,111600.0,0.02492]
[1756344286229,1.50994886,111610.0,111600.0,0.04091]
[1756344286532,1.19772,111610.0,111600.0,0.04091]
[1756344286830,1.51094886,111610.0,111600.0,0.04091]
[1756344287036,1.50994886,111610.0,111600.0,0.04091]
[1756344287331,0.88072,111610.0,111600.0,0.41933886]
[1756344287521,0.87972,111610.0,111600.0,0.45167886]
[1756344287724,0.88172,111610.0,111600.0,0.45167886]
[1756344287934,0.0538,111610.0,111600.0,0.45167886]
[1756344288128,0.62196,111610.0,111600.0,0.45167886]
[1756344288927,0.62196,111610.0,111600.0,0.13945]
[1756344289236,0.62196,111610.0,111600.0,0.45167886]
[1756344289934,1.23172,111610.0,111600.0,0.04091]
[1756344291227,0.0538,111610.0,111600.0,0.10711]
[1756344291435,0.0538,111610.0,111600.0,0.45167886]
[1756344291730,0.31448,111610.0,111600.0,0.45167886]
[1756344292535,0.31348,111610.0,111600.0,0.45167886]
[1756344292842,0.31148,111610.0,111600.0,0.45167886]
[1756344293238,0.31048,111610.0,111600.0,0.45167886]
[1756344293438,0.31148,111610.0,111600.0,0.45167886]
[1756344294433,0.0508,111610.0,111600.0,0.45167886]
[1756344294634,0.60492,111610.0,111600.0,0.45167886]
[1756344295342,0.0508,111610.0,111600.0,0.45167886]
[1756344295545,0.87872,111610.0,111600.0,0.45167886]
[1756344300139,0.87872,111610.0,111600.0,0.13945]
[1756344300947,0.0508,111610.0,111600.0,0.45167886]
[1756344301147,0.87872,111610.0,111600.0,0.45167886]
[1756344303643,0.87872,111610.0,111600.0,0.13945]
[1756344303943,0.6993704,111610.0,111600.0,0.13945]
[1756344304934,1.37159926,111610.0,111600.0,0.0831]
[1756344305140,1.37159926,111610.0,111600.0,0.04091]
[1756344305351,1.37159926,111610.0,111600.0,0.02492]
[1756344306048,1.37159926,111610.0,111600.0,0.04156]
[1756344307850,0.03176,111600.0,111580.0,0.06244]
[1756344308049,1.17182886,111590.0,111580.0,0.30434]
[1756344308251,1.1996,111590.0,111580.0,0.32363]
[1756344308553,1.2196,111590.0,111580.0,0.32363]
[1756344308941,0.36398886,111590.0,111580.0,0.32463]
[1756344309145,1.19182886,111590.0,111580.0,0.32463]
[1756344309347,1.19182886,111590.0,111580.0,0.32663]
[1756344309848,1.49182886,111590.0,111580.0,0.32663]
[1756344310044,1.1796,111590.0,111580.0,0.35381]
[1756344310555,1.1816,111590.0,111580.0,0.35181]
[1756344311648,1.1826,111590.0,111580.0,0.35081]
[1756344311844,1.1826,111590.0,111580.0,0.11891]
[1756344312050,1.49482886,111590.0,111580.0,0.11891]
[1756344312252,1.49482886,111590.0,111580.0,0.15081]
[1756344312552,1.49482886,111590.0,111580.0,0.02718]
[1756344312755,0.03176,111580.0,111570.0,0.12162]
[1756344312947,0.8774214,111580.0,111570.0,0.23081]
[1756344313445,0.0365314,111580.0,111570.0,0.54303886]
[1756344313645,0.8643714,111580.0,111570.0,0.23081]
[1756344313845,0.0365314,111580.0,111570.0,0.54303886]
[1756344314049,0.8653714,111580.0,111570.0,0.54303886]
[1756344314648,0.0375314,111580.0,111570.0,0.54303886]
[1756344314850,0.4246914,111580.0,111570.0,0.54303886]
[1756344315753,0.4256914,111580.0,111570.0,0.54303886]
[1756344316053,0.4256914,111580.0,111570.0,0.23081]
[1756344316248,0.4256914,111580.0,111570.0,0.54303886]
[1756344317255,0.0385314,111580.0,111570.0,0.54303886]
[1756344317454,0.7685714,111580.0,111570.0,0.54303886]
[1756344318249,0.7685714,111580.0,111570.0,0.23081]
[1756344318456,0.7816214,111580.0,111570.0,0.23081]
[1756344318655,0.7816214,111580.0,111570.0,0.54303886]
[1756344319058,0.0385314,111580.0,111570.0,0.54303886]
[1756344319257,0.8477014,111580.0,111570.0,0.54303886]
[1756344319656,1.49864026,111580.0,111560.0,0.06835906]
[1756344319958,1.49864026,111580.0,111560.0,0.02718]
[1756344319959,0.34398886,111570.0,111560.0,0.02718]
[1756344320149,0.63222886,111570.0,111560.0,0.02718]
[1756344320350,0.63222886,111570.0,111560.0,0.04382]
[1756344320952,0.88222886,111570.0,111560.0,0.02718]
[1756344321152,0.57,111570.0,111560.0,0.02718]
[1756344321346,0.88222886,111570.0,111560.0,0.02718]
[1756344321746,0.92222886,111570.0,111560.0,0.04382]
[1756344321953,1.75706886,111570.0,111560.0,0.06501]
[1756344323052,1.75706886,111570.0,111560.0,0.02718]
[1756344323354,1.83044325,111570.0,111550.0,0.02728]
[1756344323657,0.31222886,111560.0,111550.0,0.02718]
[1756344323855,0.65222886,111560.0,111550.0,0.02718]
[1756344324658,0.68434284,111560.0,111550.0,0.02718]
[1756344325154,0.68434284,111560.0,111550.0,0.02918]
[1756344325561,0.68434284,111560.0,111550.0,0.03018]
[1756344326461,0.02103,111550.0,111540.0,0.04392]
[1756344326758,1.50809886,111550.0,111540.0,0.04392]
[1756344326958,0.67325886,111550.0,111540.0,0.06511]
[1756344327162,1.51817886,111550.0,111540.0,0.14091]
[1756344327356,1.54817886,111550.0,111540.0,0.14091]
[1756344327564,1.52813886,111550.0,111540.0,0.14091]
[1756344327757,1.18813886,111550.0,111540.0,0.10901]
[1756344328364,1.18813886,111550.0,111540.0,0.11101]
[1756344328567,1.18813886,111550.0,111540.0,0.14291]
[1756344328866,1.18813886,111550.0,111540.0,0.14391]
[1756344329066,0.33325886,111550.0,111540.0,0.14391]
[1756344329362,0.85551,111550.0,111540.0,0.14391]
[1756344330259,0.85547,111550.0,111540.0,0.14391]
[1756344330656,0.848,111550.0,111540.0,0.45613886]
[1756344331060,0.85547,111550.0,111540.0,0.45613886]
[1756344331463,0.85547,111550.0,111540.0,0.14391]
[1756344332664,0.85503,111550.0,111540.0,0.14391]
[1756344333070,0.02103,111550.0,111540.0,0.14391]
[1756344333269,0.84748,111550.0,111540.0,0.14391]
[1756344333766,0.85495,111550.0,111540.0,0.14391]
[1756344334163,0.84756,111550.0,111540.0,0.45613886]
[1756344334564,0.85503,111550.0,111540.0,0.45613886]
[1756344335566,0.85503,111550.0,111540.0,0.14391]
[1756344336869,1.18725886,111550.0,111540.0,0.0874]
[1756344337070,1.18725886,111550.0,111540.0,0.12222]
[1756344337370,1.18725886,111550.0,111540.0,0.14674]
[1756344337869,0.87503,111550.0,111540.0,0.14674]
[1756344338067,1.53725886,111550.0,111540.0,0.0031]
[1756344338270,0.07682,111540.0,111530.0,0.04029]
[1756344338471,0.07682,111540.0,111530.0,0.07511]
[1756344338472,0.75696965,111540.0,111530.0,0.07511]
[1756344339568,0.75696965,111540.0,111530.0,0.08011]
[1756344340269,0.75696965,111540.0,111530.0,0.10766]
[1756344340470,0.72696965,111540.0,111530.0,0.10766]
[1756344340664,0.72696965,111540.0,111530.0,0.13218]
[1756344341264,1.57164965,111540.0,111530.0,0.005]
[1756344341466,1.57164965,111540.0,111530.0,0.05037]
[1756344341663,1.57164965,111540.0,111530.0,0.10766]
[1756344341866,1.57164965,111540.0,111530.0,0.15207]
[1756344342963,1.25942079,111540.0,111530.0,0.15207]
[1756344343164,1.57164965,111540.0,111530.0,0.15207]
[1756344343460,1.26164965,111540.0,111530.0,0.15207]
[1756344343867,1.24500965,111540.0,111530.0,0.15207]
[1756344344268,0.93278079,111540.0,111530.0,0.15207]
[1756344345666,1.30278079,111540.0,111530.0,0.12755]
[1756344345966,0.93278079,111540.0,111530.0,0.15207]
[1756344346466,0.93278079,111540.0,111530.0,0.14707]
[1756344348370,0.93278079,111540.0,111530.0,0.12255]
[1756344348573,0.93278079,111540.0,111530.0,0.14707]
[1756344348974,0.09474079,111540.0,111530.0,0.14707]
[1756344349174,0.93146079,111540.0,111530.0,0.14707]
[1756344351075,0.93110079,111540.0,111530.0,0.14707]
[1756344352666,0.11474079,111540.0,111530.0,0.14707]
[1756344352873,0.95086079,111540.0,111530.0,0.14707]
[1756344353378,0.95086079,111540.0,111530.0,0.45929886]
[1756344353677,0.09474079,111540.0,111530.0,0.45929886]
[1756344353870,0.93054079,111540.0,111530.0,0.45929886]
[1756344354676,0.93054079,111540.0,111530.0,0.14707]
[1756344360182,0.09474079,111540.0,111530.0,0.14707]
[1756344360382,0.62062079,111540.0,111530.0,0.14707]
[1756344360982,0.09474079,111540.0,111530.0,0.14707]
[1756344361182,0.92930079,111540.0,111530.0,0.45929886]
[1756344362087,0.92930079,111540.0,111530.0,0.14707]
[1756344362285,0.92930079,111540.0,111530.0,0.45929886]
[1756344364391,0.92930079,111540.0,111530.0,0.14707]
[1756344364784,1.26930079,111540.0,111530.0,0.45929886]
[1756344367984,1.26930079,111540.0,111530.0,0.14707]
[1756344368790,2.76930079,111540.0,111530.0,0.14707]
[1756344371798,2.76930079,111540.0,111530.0,0.45929886]
[1756344372600,1.59474079,111540.0,111530.0,0.45929886]
[1756344372801,2.42806079,111540.0,111530.0,0.45929886]
[1756344374989,2.42762079,111540.0,111530.0,0.45929886]
[1756344376104,1.59474079,111540.0,111530.0,0.45929886]
[1756344376300,2.42762079,111540.0,111530.0,0.45929886]
[1756344376601,2.42734079,111540.0,111530.0,0.45929886]
[1756344380202,1.59474079,111540.0,111530.0,0.45929886]
[1756344380404,2.42674079,111540.0,111530.0,0.45929886]
[1756344381302,2.66128931,111540.0,111530.0,0.38161852]
[1756344381503,2.66104931,111540.0,111530.0,0.38161852]
[1756344383910,2.66104931,111540.0,111530.0,0.14707]
[1756344384204,2.66104931,111540.0,111530.0,0.38161852]
[1756344384906,2.66104931,111540.0,111530.0,0.35709852]
[1756344388107,3.03104931,111540.0,111530.0,0.12255]
[1756344388308,3.03104931,111540.0,111530.0,0.35709852]
[1756344388810,2.99104931,111540.0,111530.0,0.35709852]
[1756344389013,2.66104931,111540.0,111530.0,0.35709852]
[1756344390013,2.98104931,111540.0,111530.0,0.35709852]
[1756344390808,3.01104931,111540.0,111530.0,0.35709852]
[1756344392010,3.01104931,111540.0,111530.0,0.38183852]
[1756344392612,3.01104931,111540.0,111530.0,0.06784]
[1756344392907,1.59474079,111540.0,111530.0,0.35438852]
[1756344393104,2.65880931,111540.0,111530.0,0.37912852]
[1756344393307,1.82928931,111540.0,111530.0,0.37912852]
[1756344393613,2.65880931,111540.0,111530.0,0.37912852]
[1756344395914,1.59474079,111540.0,111530.0,0.37912852]
[1756344396111,2.65880931,111540.0,111530.0,0.37912852]
[1756344397312,1.59474079,111540.0,111530.0,0.46878292]
[1756344397512,0.92426079,111540.0,111530.0,0.91333144]
[1756344397812,0.88362079,111540.0,111530.0,0.95333144]
[1756344398013,0.89293079,111540.0,111530.0,1.24323747]
[1756344398515,0.89293079,111540.0,111530.0,1.16333144]
[1756344400614,0.89293079,111540.0,111530.0,1.24323747]
[1756344401114,0.01792079,111540.0,111530.0,1.24323747]
[1756344401313,0.72320079,111540.0,111530.0,1.24323747]
[1756344401613,0.01792079,111540.0,111530.0,1.24323747]
[1756344402817,0.01792079,111540.0,111530.0,1.16333144]
[1756344403011,0.01792079,111540.0,111530.0,1.39787996]
[1756344403618,0.01841133,111550.0,111540.0,0.2310164]
[1756344403916,0.03234881,111560.0,111550.0,0.2310083]
[1756344404112,0.03224881,111560.0,111550.0,0.91010534]
[1756344404317,0.03224881,111560.0,111550.0,0.99001137]
[1756344404817,0.03224881,111560.0,111550.0,1.00993043]
[1756344405318,0.03224881,111560.0,111550.0,0.85333305]
[1756344405506,0.03224881,111560.0,111550.0,0.77342702]
[1756344405910,0.03224881,111560.0,111550.0,0.46092736]
[1756344406110,0.03224881,111560.0,111550.0,0.77342702]
[1756344409822,0.00013483,111560.0,111550.0,1.91576668]
[1756344410016,0.07347439,111570.0,111550.0,1.33592668]
[1756344410228,0.09760455,111570.0,111560.0,0.85599962]
[1756344410522,0.02413016,111570.0,111560.0,1.06599962]
[1756344410721,0.8912614,111580.0,111570.0,0.2062522]
[1756344411022,1.2211614,111580.0,111570.0,0.54349186]
[1756344412126,1.2241614,111580.0,111570.0,0.54349186]
[1756344412328,1.2261614,111580.0,111570.0,0.54349186]
[1756344412726,1.2542114,111580.0,111570.0,0.54349186]
[1756344413536,1.2522114,111580.0,111570.0,0.54349186]
[1756344414425,1.27502221,111580.0,111570.0,0.54349186]
[1756344414725,1.27402221,111580.0,111570.0,0.54349186]
[1756344420236,1.27402221,111580.0,111570.0,0.50999186]
[1756344420432,1.27402221,111580.0,111570.0,0.54264186]
[1756344421733,1.27402221,111580.0,111570.0,0.31249966]
[1756344422035,0.07096,111570.0,111560.0,0.10967444]
[1756344422228,0.07096,111570.0,111560.0,0.15547444]
[1756344422427,0.07096,111570.0,111560.0,0.4899241]
[1756344422628,0.07096,111570.0,111560.0,0.5465041]
[1756344422828,0.14209751,111570.0,111560.0,0.5661741]
[1756344423025,0.94231751,111570.0,111560.0,0.5661741]
[1756344423234,0.97133751,111570.0,111560.0,0.5661741]
[1756344425036,0.97233751,111570.0,111560.0,0.5661741]
[1756344425337,0.97333751,111570.0,111560.0,0.5661741]
[1756344426538,0.90233751,111570.0,111560.0,0.7761741]
[1756344426740,0.94427751,111570.0,111560.0,1.08867376]
[1756344426937,0.94427751,111570.0,111560.0,0.7761741]
[1756344427137,0.97329751,111570.0,111560.0,0.7761741]
[1756344427338,0.97329751,111570.0,111560.0,0.93239708]
[1756344428244,0.97329751,111570.0,111560.0,0.72239708]
[1756344428437,0.07313751,111570.0,111560.0,1.4167584]
[1756344428642,0.90233751,111570.0,111560.0,1.2067584]
[1756344428843,0.90233751,111570.0,111560.0,1.4167584]
[1756344429044,0.07313751,111570.0,111560.0,1.4167584]
[1756344431348,0.07313751,111570.0,111560.0,1.33856414]
[1756344432249,0.07313751,111570.0,111560.0,2.16772414]
[1756344432644,0.07313751,111570.0,111560.0,1.33856414]
[1756344433040,0.07313751,111570.0,111560.0,2.16772414]
[1756344433240,0.08145751,111570.0,111560.0,1.08856414]
[1756344433540,0.76619127,111590.0,111570.0,0.0896203]
[1756344433746,1.14788661,111590.0,111570.0,0.43104665]
[1756344434943,1.14988661,111590.0,111570.0,0.43104665]
[1756344435346,1.15288661,111590.0,111570.0,0.44796665]
[1756344435550,1.15288661,111590.0,111570.0,0.41898665]
[1756344435747,1.15288661,111590.0,111580.0,0.02898]
[1756344435943,1.15288661,111590.0,111570.0,0.43114665]
[1756344435944,1.40288661,111590.0,111570.0,0.43114665]
[1756344436144,1.40288661,111590.0,111570.0,0.43104665]
[1756344436347,0.94914019,111590.0,111580.0,0.02898]
[1756344436650,1.80142789,111590.0,111570.0,0.02908]
[1756344436851,1.48898304,111590.0,111580.0,0.02898]
[1756344437039,1.80142789,111590.0,111580.0,0.02898]
[1756344437243,1.55142789,111590.0,111580.0,0.02898]
[1756344437646,1.55142789,111590.0,111570.0,0.34152485]
[1756344437846,1.80142789,111590.0,111570.0,0.02898]
[1756344438344,1.48998304,111590.0,111570.0,0.0459]
[1756344438649,1.80242789,111590.0,111570.0,0.0459]
[1756344439051,1.80142789,111590.0,111570.0,0.0459]
[1756344439743,1.48498304,111590.0,111570.0,0.0459]
[1756344439940,1.80042789,111590.0,111580.0,0.02898]
[1756344440144,1.55042789,111590.0,111580.0,0.02898]
[1756344440355,1.55142789,111590.0,111570.0,0.02908]
[1756344440542,1.55142789,111590.0,111570.0,0.0459]
[1756344440747,1.55142789,111590.0,111570.0,0.03887]
[1756344441052,1.55142789,111590.0,111580.0,0.02898]
[1756344441550,1.55242789,111590.0,111580.0,0.02898]
[1756344441751,1.38036674,111590.0,111580.0,0.02898]
[1756344441951,1.54242789,111590.0,111580.0,0.02898]
[1756344442348,1.54342789,111590.0,111580.0,0.02898]
[1756344443544,1.79342789,111590.0,111570.0,0.02908]
[1756344443747,0.31244485,111580.0,111570.0,0.02898]
[1756344443947,0.71615791,111580.0,111570.0,0.02898]
[1756344444955,0.72015791,111580.0,111570.0,0.02898]
[1756344445255,0.97015791,111580.0,111560.0,0.02908]
[1756344445454,1.14152485,111570.0,111560.0,0.02898]
[1756344445651,1.57575544,111570.0,111560.0,0.02898]
[1756344446052,0.74667544,111570.0,111560.0,0.02898]
[1756344446257,1.57579544,111570.0,111560.0,0.0459]
[1756344446753,1.26335059,111570.0,111560.0,0.0459]
[1756344447352,1.26635059,111570.0,111560.0,0.0459]
[1756344447547,0.43723059,111570.0,111560.0,0.0459]
[1756344447752,0.94631059,111570.0,111560.0,0.54617515]
[1756344448050,0.92359753,111570.0,111560.0,0.54617515]
[1756344448952,1.30359753,111570.0,111560.0,0.1441]
[1756344449154,0.94359753,111570.0,111560.0,0.02898]
[1756344449361,0.94359753,111570.0,111560.0,0.04562]
[1756344449555,0.09451753,111570.0,111560.0,0.08751]
[1756344449761,0.92335753,111570.0,111560.0,0.14549]
[1756344450057,0.92335753,111570.0,111560.0,0.45793485]
[1756344450459,0.92363753,111570.0,111560.0,0.45793485]
[1756344452167,0.09451753,111570.0,111560.0,0.45793485]
[1756344452355,0.65535753,111570.0,111560.0,0.54756515]
[1756344453361,0.09451753,111570.0,111560.0,0.54756515]
[1756344453661,0.92363753,111570.0,111560.0,0.54756515]
[1756344454767,0.92363753,111570.0,111560.0,0.45793485]
[1756344458670,0.92363753,111570.0,111560.0,0.54756515]
[1756344459171,0.92359753,111570.0,111560.0,0.54756515]
[1756344460070,0.09451753,111570.0,111560.0,0.54756515]
[1756344460267,0.92359753,111570.0,111560.0,0.54756515]
[1756344460569,0.92359753,111570.0,111560.0,0.45793485]